bitfinex/quotes_SOLUSD_20250313
["timestamp","ask_amount","ask_price","bid_price","bid_amount"]
[1741878010073,42.14306648,125.54,125.47,6.3742]
[1741878010258,124.94306648,125.58,125.48,42.14306648]
[1741878010456,18.64964886,125.57,125.5,42.14306648]
[1741878010657,42.14306648,125.54,125.49,8.22216157]
[1741878010851,42.14306648,125.54,125.5,0.14216157]
[1741878011067,42.14306648,125.55,125.5,0.14216157]
[1741878011270,18.64964886,125.57,125.5,0.14216157]
[1741878011468,42.14306648,125.55,125.5,0.14216157]
[1741878011885,42.14306648,125.53,125.5,0.14216157]
[1741878012057,42.14306648,125.54,125.5,0.14216157]
[1741878012371,63.15165918,125.54,125.5,0.14216157]
[1741878012755,63.15165918,125.55,125.5,0.14216157]
[1741878012965,63.15165918,125.57,125.51,81.94346961]
[1741878013258,63.15165918,125.6,125.53,63.29382075]
[1741878013575,33.148931,125.63,125.53,63.29382075]
[1741878013576,63.15165918,125.58,125.53,0.28432314]
[1741878013759,63.15165918,125.57,125.52,0.14216157]
[1741878013960,63.15165918,125.56,125.5,0.14216157]
[1741878014158,63.15165918,125.55,125.5,0.28432314]
[1741878014480,63.15165918,125.54,125.5,0.28432314]
[1741878014653,63.15165918,125.52,125.47,136.9]
[1741878014858,63.15165918,125.5,125.46,18.934072]
[1741878015158,63.15165918,125.52,125.46,0.0001]
[1741878015469,63.15165918,125.52,125.47,0.28432314]
[1741878015774,63.15165918,125.52,125.47,18.933972]
[1741878015976,63.15165918,125.48,125.46,0.0001]
[1741878016175,18.64964886,125.51,125.46,0.0001]
[1741878016478,63.15165918,125.47,125.46,0.0001]
[1741878017081,63.15165918,125.48,125.46,0.0001]
[1741878017270,82.8,125.55,125.46,18.934072]
[1741878017473,63.15165918,125.55,125.49,0.28432314]
[1741878017670,20.27934886,125.57,125.5,0.14216157]
[1741878017671,63.15165918,125.56,125.5,0.14216157]
[1741878017870,63.15165918,125.55,125.5,0.14216157]
[1741878018265,64.78135918,125.57,125.51,63.29382075]
[1741878018461,63.15165918,125.57,125.51,63.29382075]
[1741878018666,63.15165918,125.59,125.53,63.29382075]
[1741878018867,63.15165918,125.59,125.54,0.14216157]
[1741878019076,1.5458,125.63,125.56,63.15165918]
[1741878019257,1.5458,125.63,125.55,0.14216157]
[1741878019465,63.15165918,125.61,125.55,63.29382075]
[1741878019659,63.15165918,125.62,125.56,63.15165918]
[1741878019876,63.15165918,125.61,125.55,18.79181043]
[1741878020078,63.15165918,125.61,125.56,0.14216157]
[1741878020388,63.15165918,125.57,125.53,312.0]
[1741878020689,63.15165918,125.55,125.51,0.28432314]
[1741878020868,63.15165918,125.56,125.51,0.28432314]
[1741878021186,63.15165918,125.56,125.52,0.28432314]
[1741878021381,63.15165918,125.58,125.52,0.28432314]
[1741878021575,8.16,125.59,125.51,0.14216157]
[1741878021576,63.15165918,125.55,125.51,0.14216157]
[1741878021764,63.15165918,125.53,125.47,6.366]
[1741878021963,63.15165918,125.51,125.47,0.14216157]
[1741878022279,63.15165918,125.51,125.46,0.0001]
[1741878022482,63.15165918,125.52,125.46,63.15175918]
[1741878022669,63.15165918,125.51,125.46,0.0001]
[1741878022991,63.15165918,125.51,125.46,0.14226157]
[1741878023223,71.11895918,125.52,125.46,0.14226157]
[1741878023896,63.15165918,125.53,125.48,0.28432314]
[1741878024094,63.15165918,125.55,125.49,63.29382075]
[1741878024469,63.15165918,125.54,125.49,0.28432314]
[1741878024669,63.15165918,125.56,125.5,63.15165918]
[1741878024893,71.11595918,125.56,125.49,82.08563118]
[1741878025395,71.11595918,125.56,125.5,63.15165918]
[1741878025985,71.11595918,125.56,125.5,18.64964886]
[1741878026491,63.15165918,125.55,125.5,18.64964886]
[1741878026694,63.15165918,125.56,125.5,18.64964886]
[1741878026868,71.11475918,125.58,125.51,18.933972]
[1741878027071,19.9044,125.61,125.54,0.28432314]
[1741878027072,63.15165918,125.59,125.54,0.28432314]
[1741878027275,19.9044,125.61,125.54,63.43598232]
[1741878027276,7.9617,125.6,125.54,63.43598232]
[1741878027479,63.15165918,125.61,125.56,0.28432314]
[1741878027680,63.15165918,125.62,125.56,63.43598232]
[1741878027893,7.9586,125.65,125.6,63.43598232]
[1741878028082,63.15165918,125.63,125.6,0.28432314]
[1741878028325,63.15165918,125.61,125.57,8.14]
[1741878028614,63.15165918,125.61,125.58,0.28432314]
[1741878028798,63.15165918,125.62,125.58,0.28432314]
[1741878029424,63.15165918,125.62,125.52,1.19428436]
[1741878029425,63.15165918,125.59,125.54,0.28432314]
[1741878029598,63.15165918,125.58,125.54,0.28432314]
[1741878029786,63.15165918,125.57,125.54,0.28432314]
[1741878030100,63.15165918,125.56,125.51,88.5256]
[1741878030303,63.15165918,125.57,125.52,0.28432314]
[1741878030483,63.15165918,125.58,125.52,0.28432314]
[1741878030684,63.15165918,125.57,125.52,0.28432314]
[1741878030909,7.9643,125.56,125.52,0.28432314]
[1741878031911,7.9643,125.56,125.37,87.10131418]
[1741878031912,63.15165918,125.53,125.46,0.0001]
[1741878032084,63.15165918,125.53,125.47,0.28432314]
[1741878032291,63.15165918,125.54,125.47,63.43598232]
[1741878032607,63.15165918,125.54,125.48,18.64964886]
[1741878032910,71.11845918,125.53,125.48,18.64964886]
[1741878033209,71.11845918,125.53,125.47,18.933972]
[1741878033418,63.15165918,125.54,125.48,63.15165918]
[1741878033588,63.15165918,125.56,125.49,82.08563118]
[1741878033789,63.15165918,125.55,125.49,82.08563118]
[1741878034003,63.15165918,125.54,125.49,18.933972]
[1741878034199,63.15165918,125.55,125.49,18.933972]
[1741878034403,7.9636,125.57,125.53,18.933972]
[1741878034596,63.15165918,125.59,125.53,18.933972]
[1741878034907,71.11465918,125.58,125.53,18.933972]
[1741878035111,63.15165918,125.56,125.53,0.28432314]
[1741878035297,8.2,125.57,125.5,0.28432314]
[1741878035489,63.15165918,125.54,125.5,0.28432314]
[1741878035889,63.15165918,125.53,125.48,18.933972]
[1741878036087,63.15165918,125.53,125.52,0.03]
[1741878037073,7.9636,125.57,125.52,0.03]
[1741878037279,63.15165918,125.54,125.52,0.03]
[1741878037887,63.15165918,125.53,125.52,0.03]
[1741878038997,71.11785918,125.53,125.52,0.03]
[1741878039400,20.0,125.5,125.46,0.0001]
[1741878039575,8.18,125.5,125.46,0.0001]
[1741878039778,63.15165918,125.52,125.46,63.43608232]
[1741878039995,63.15165918,125.51,125.46,0.28442314]
[1741878040202,63.15165918,125.49,125.46,0.0001]
[1741878040386,63.15165918,125.48,125.46,0.0001]
[1741878040592,63.15165918,125.49,125.46,0.0001]
[1741878040994,63.15165918,125.48,125.46,0.0001]
[1741878041298,63.15165918,125.51,125.46,0.28442314]
[1741878041599,63.15165918,125.51,125.46,0.14226157]
[1741878041802,7.9649,125.55,125.46,0.0001]
[1741878042102,71.11655918,125.55,125.48,63.43598232]
[1741878042307,16.1445,125.56,125.51,0.28432314]
[1741878042478,8.18,125.56,125.51,63.43598232]
[1741878042684,71.11425918,125.59,125.52,81.80130804]
[1741878042992,1.5407,125.6,125.51,63.29382075]
[1741878042993,63.15165918,125.57,125.51,63.29382075]
[1741878043196,63.15165918,125.55,125.51,0.28432314]
[1741878043894,63.15165918,125.56,125.51,0.28432314]
[1741878044282,63.15165918,125.54,125.51,0.28432314]
[1741878044601,63.15165918,125.53,125.5,0.28432314]
[1741878044899,63.15165918,125.52,125.48,0.14216157]
[1741878045098,7.9636,125.57,125.5,0.28432314]
[1741878045294,63.15165918,125.54,125.5,0.14216157]
[1741878045800,63.15165918,125.53,125.48,26.903072]
[1741878045997,63.15165918,125.54,125.48,90.05473118]
[1741878046180,63.15165918,125.54,125.48,82.08563118]
[1741878046377,27.8728,125.57,125.48,82.08563118]
[1741878046378,63.15165918,125.53,125.48,26.903272]
[1741878046581,63.15165918,125.54,125.48,90.05493118]
[1741878046881,63.15165918,125.55,125.48,90.05493118]
[1741878047202,71.11695918,125.55,125.48,90.05493118]
[1741878047393,63.15165918,125.54,125.48,90.05493118]
[1741878047906,63.15165918,125.54,125.46,0.0001]
[1741878047907,63.15165918,125.49,125.46,0.0001]
[1741878048213,63.15165918,125.47,125.46,0.0001]
[1741878049108,81.80130804,125.47,125.46,0.0001]
[1741878049292,81.80130804,125.47,125.39,0.03]
[1741878049293,27.9039,125.43,125.39,0.03]
[1741878049481,63.15165918,125.4,125.39,0.03]
[1741878051288,71.12605918,125.4,125.39,0.03]
[1741878055484,29.7288,125.43,125.39,0.03]
[1741878055485,63.15165918,125.41,125.39,0.03]
[1741878055712,71.12585918,125.41,125.39,0.03]
[1741878056089,63.15165918,125.4,125.39,0.03]
[1741878056902,63.15165918,125.4,125.35,0.03]
[1741878057206,63.15165918,125.38,125.35,0.03]
[1741878057608,71.12765918,125.38,125.35,0.03]
[1741878058487,7.976,125.38,125.35,0.03]
[1741878059089,71.12695918,125.39,125.35,0.03]
[1741878059313,7.9753,125.39,125.35,0.03]
[1741878059613,71.12695918,125.39,125.35,0.03]
[1741878060212,63.15165918,125.39,125.35,0.31432314]
[1741878060413,71.12295918,125.45,125.39,18.933972]
[1741878060591,7.9708,125.46,125.41,18.933972]
[1741878060917,71.12245918,125.46,125.41,18.933972]
[1741878061214,63.15165918,125.42,125.38,219.3]
[1741878061415,63.15165918,125.45,125.4,0.28432314]
[1741878061586,63.15165918,125.46,125.41,18.64964886]
[1741878061791,63.15165918,125.45,125.4,18.933972]
[1741878062094,63.15165918,125.43,125.4,0.28432314]
[1741878062719,27.895,125.47,125.35,9.8345]
[1741878062720,63.15165918,125.42,125.36,63.15165918]
[1741878062916,18.64964886,125.46,125.36,63.15165918]
[1741878062917,63.15165918,125.41,125.36,18.933972]
[1741878063102,8.14,125.45,125.36,0.28432314]
[1741878063103,63.15165918,125.4,125.36,0.28432314]
[1741878063291,63.15165918,125.4,125.36,312.28432314]
[1741878063496,63.15165918,125.39,125.35,0.03]
[1741878063716,63.15165918,125.38,125.35,0.03]
[1741878063888,63.15165918,125.42,125.37,0.28432314]
[1741878064521,7.9725,125.43,125.38,0.14216157]
[1741878064522,71.12415918,125.43,125.38,0.14216157]
[1741878064907,28.0684,125.45,125.39,63.29382075]
[1741878064908,63.15165918,125.45,125.39,63.29382075]
[1741878065112,63.15165918,125.43,125.39,0.14216157]
[1741878065622,71.12425918,125.43,125.39,0.14216157]
[1741878065799,63.15165918,125.43,125.38,0.28432314]
[1741878065992,63.15165918,125.44,125.38,71.41168232]
[1741878066224,63.15165918,125.45,125.39,81.80130804]
[1741878066527,63.15165918,125.45,125.4,0.28432314]
[1741878066900,71.12195918,125.47,125.41,63.15165918]
[1741878067123,71.12165918,125.47,125.42,18.933972]
[1741878067310,63.15165918,125.46,125.42,0.28432314]
[1741878067519,71.12295918,125.45,125.39,206.37065918]
[1741878067706,63.15165918,125.43,125.4,0.28432314]
[1741878067903,63.15165918,125.44,125.4,0.28432314]
[1741878068515,7.9713,125.45,125.4,0.28432314]
[1741878068722,63.15165918,125.46,125.4,82.08563118]
[1741878068918,82.8,125.5,125.45,0.14216157]
[1741878068919,153.91985918,125.5,125.45,0.14216157]
[1741878069114,71.11985918,125.5,125.45,0.14216157]
[1741878069336,63.15165918,125.49,125.44,0.14216157]
[1741878069710,71.12065918,125.49,125.45,0.28432314]
[1741878069907,19.9185,125.52,125.45,0.28432314]
[1741878070131,7.9668,125.52,125.48,0.28432314]
[1741878070437,12.38366562,125.53,125.51,0.28432314]
[1741878070804,83.5015248,125.53,125.48,6.4684]
[1741878071005,83.5015248,125.53,125.49,0.28432314]
[1741878071322,83.5015248,125.53,125.47,63.15165918]
[1741878071534,83.5015248,125.53,125.46,0.28432314]
[1741878071535,7.9687,125.49,125.46,0.28432314]
[1741878071833,63.15165918,125.47,125.43,18.933972]
[1741878072140,63.15165918,125.48,125.43,18.933972]
[1741878072304,7.9687,125.49,125.43,0.28432314]
[1741878072305,0.063,125.46,125.43,0.28432314]
[1741878072506,63.15165918,125.45,125.41,0.28432314]
[1741878072726,63.15165918,125.45,125.4,6.0834]
[1741878072932,63.15165918,125.44,125.39,0.31432314]
[1741878073103,63.15165918,125.43,125.39,0.31432314]
[1741878073307,63.15165918,125.41,125.39,0.03]
[1741878073729,7.974,125.41,125.39,0.03]
[1741878073936,71.12565918,125.41,125.39,0.03]
[1741878074114,63.15165918,125.4,125.39,0.03]
[1741878075913,71.12605918,125.4,125.39,0.03]
[1741878076142,63.15165918,125.4,125.39,0.03]
[1741878076433,63.15165918,125.41,125.39,0.03]
[1741878077235,63.15165918,125.4,125.39,0.03]
[1741878077809,71.12605918,125.4,125.39,0.03]
[1741878078124,71.12605918,125.4,125.39,0.0001]
[1741878078513,79.18605918,125.4,125.39,0.0001]
[1741878080036,97.83570804,125.4,125.39,0.0001]
[1741878080353,119.38180804,125.4,125.35,0.03]
[1741878080640,63.15165918,125.36,125.35,0.03]
[1741878080847,20.0,125.37,125.35,0.03]
[1741878081141,63.15165918,125.36,125.35,0.03]
[1741878081438,83.15165918,125.37,125.35,0.03]
[1741878081627,63.15165918,125.36,125.35,0.03]
[1741878082114,71.12865918,125.36,125.35,0.03]
[1741878082927,63.15165918,125.38,125.35,0.03]
[1741878083132,7.9751,125.39,125.35,0.03]
[1741878083323,63.15165918,125.38,125.35,0.03]
[1741878083725,7.9751,125.39,125.35,0.03]
[1741878084034,71.12675918,125.39,125.35,0.03]
[1741878084237,63.15165918,125.36,125.35,0.03]
[1741878085034,63.15165918,125.36,125.33,0.03]
[1741878085035,20.0,125.34,125.33,0.03]
[1741878085244,83.15165918,125.34,125.33,0.03]
[1741878085940,83.15165918,125.34,125.27,0.14216157]
[1741878086132,71.13235918,125.31,125.25,77.48515918]
[1741878086341,63.15165918,125.29,125.25,6.3498]
[1741878086515,7.9807,125.31,125.26,0.28432314]
[1741878086516,63.15165918,125.3,125.26,0.28432314]
[1741878086846,71.13235918,125.31,125.26,0.28432314]
[1741878087750,71.13235918,125.31,125.26,18.933972]
[1741878088047,71.19165918,125.33,125.27,63.15165918]
[1741878088231,63.15165918,125.33,125.29,0.28432314]
[1741878088620,63.15165918,125.3,125.27,0.14216157]
[1741878089556,63.15165918,125.29,125.25,6.3498]
[1741878089724,63.15165918,125.28,125.25,6.3498]
[1741878090236,63.15165918,125.29,125.25,6.3498]
[1741878090951,15.9998,125.32,125.26,63.43598232]
[1741878091150,63.15165918,125.31,125.26,63.43598232]
[1741878091655,63.15165918,125.33,125.28,63.43598232]
[1741878092224,71.13055918,125.33,125.28,63.43598232]
[1741878092435,63.15165918,125.33,125.28,0.14216157]
[1741878092620,12.38366562,125.38,125.33,0.28432314]
[1741878092835,83.5110248,125.38,125.33,63.43598232]
[1741878093035,63.15165918,125.36,125.31,0.14216157]
[1741878093336,63.15165918,125.34,125.3,0.14216157]
[1741878093534,63.15165918,125.33,125.3,0.28432314]
[1741878093736,63.15165918,125.34,125.3,0.28432314]
[1741878094130,7.9757,125.38,125.3,18.933972]
[1741878094332,7.9757,125.38,125.31,0.14216157]
[1741878094333,63.15165918,125.36,125.31,0.14216157]
[1741878094535,63.15165918,125.34,125.3,0.28432314]
[1741878095139,63.15165918,125.35,125.3,0.28432314]
[1741878095339,63.15165918,125.34,125.3,18.933972]
[1741878095549,63.15165918,125.33,125.3,0.28432314]
[1741878095939,63.15165918,125.36,125.3,71.41678232]
[1741878096134,63.15165918,125.36,125.3,375.43598232]
[1741878096354,82.8,125.39,125.3,375.43598232]
[1741878096355,63.15165918,125.35,125.3,312.28432314]
[1741878096856,27.9172,125.37,125.3,0.28432314]
[1741878096857,63.15165918,125.34,125.3,0.28432314]
[1741878097229,27.9172,125.37,125.3,71.41658232]
[1741878097230,63.15165918,125.35,125.3,71.41658232]
[1741878097442,0.063,125.34,125.3,71.41658232]
[1741878098043,0.063,125.34,125.32,0.28432314]
[1741878098563,0.063,125.34,125.29,50.25245157]
[1741878098854,0.063,125.34,125.3,42.51677471]
[1741878099641,0.063,125.34,125.3,354.51677471]
[1741878099837,42.29545157,125.34,125.3,0.28432314]
[1741878100047,42.23245157,125.33,125.3,0.28432314]
[1741878100255,0.063,125.34,125.25,6.3798]
[1741878100256,42.23245157,125.31,125.26,0.28432314]
[1741878100555,0.063,125.34,125.26,0.28432314]
[1741878100556,42.23245157,125.3,125.26,0.28432314]
[1741878100946,42.23245157,125.31,125.26,0.28432314]
[1741878101947,50.21325157,125.3,125.25,0.03]
[1741878102149,42.23245157,125.29,125.25,0.03]
[1741878103757,42.23245157,125.28,125.25,0.03]
[1741878103963,50.21485157,125.28,125.25,0.03]
[1741878104754,42.23245157,125.29,125.25,0.03]
[1741878105056,42.23245157,125.29,125.25,0.31432314]
[1741878105252,8.02,125.32,125.25,18.963972]
[1741878105253,42.23245157,125.3,125.25,18.963972]
[1741878105428,42.23245157,125.29,125.25,0.31432314]
[1741878105632,42.23245157,125.29,125.25,0.17216157]
[1741878105863,42.23245157,125.28,125.25,0.17216157]
[1741878106056,50.21515157,125.28,125.25,0.03]
[1741878106455,42.23245157,125.27,125.25,0.03]
[1741878108040,50.21575157,125.26,125.25,0.03]
[1741878111965,7.9833,125.26,125.25,0.03]
[1741878112457,50.21575157,125.26,125.25,0.03]
[1741878115466,42.23245157,125.26,125.25,0.03]
[1741878115637,50.21545157,125.27,125.25,0.03]
[1741878116363,42.23245157,125.27,125.25,0.03]
[1741878116548,50.21475157,125.28,125.25,0.03]
[1741878116941,42.23245157,125.27,125.25,0.03]
[1741878117464,42.23245157,125.26,125.25,0.03]
[1741878117874,51.74035157,125.26,125.22,0.03]
[1741878118046,62.23245157,125.23,125.22,0.03]
[1741878118248,20.0,125.19,125.08,6.1973]
[1741878118443,50.22365157,125.14,125.08,48.42975157]
[1741878118971,50.22365157,125.14,125.09,18.933972]
[1741878119276,42.23245157,125.16,125.1,42.23245157]
[1741878119568,50.22155157,125.17,125.11,42.51677471]
[1741878120367,1.514,125.21,125.13,42.51677471]
[1741878120544,42.23245157,125.19,125.13,42.51677471]
[1741878121257,42.23245157,125.17,125.13,0.28432314]
[1741878121461,42.23245157,125.15,125.11,18.933972]
[1741878121760,42.23245157,125.17,125.11,61.16642357]
[1741878122580,62.23245157,125.18,125.13,0.28432314]
[1741878122873,42.23245157,125.16,125.12,0.14216157]
[1741878123073,42.23245157,125.14,125.11,0.14216157]
[1741878123380,42.23245157,125.13,125.11,0.14216157]
[1741878123973,42.23245157,125.15,125.11,0.14216157]
[1741878124155,42.23245157,125.16,125.12,0.28432314]
[1741878125163,42.23245157,125.15,125.12,0.28432314]
[1741878125660,42.23245157,125.15,125.11,0.28432314]
[1741878126052,42.23245157,125.16,125.11,42.51677471]
[1741878126251,42.23245157,125.16,125.11,0.28432314]
[1741878126452,42.23245157,125.15,125.11,0.28432314]
[1741878126780,42.23245157,125.16,125.11,0.28432314]
[1741878127089,42.23245157,125.15,125.11,0.28432314]
[1741878127376,42.23245157,125.12,125.09,0.28432314]
[1741878128056,42.23245157,125.11,125.05,48.70445157]
[1741878128261,7.92,125.14,125.06,0.28432314]
[1741878128572,42.23245157,125.11,125.06,18.933972]
[1741878128877,15.9114,125.14,125.06,0.28432314]
[1741878128878,42.23245157,125.1,125.06,0.28432314]
[1741878129455,42.23245157,125.1,125.06,8.28032314]
[1741878129757,42.23245157,125.1,125.02,7.9987]
[1741878129758,20.0,125.1,125.02,7.9987]
[1741878129953,42.23245157,125.07,125.02,7.9987]
[1741878130157,42.23245157,125.06,125.03,0.28432314]
[1741878130567,42.23245157,125.05,125.01,7.9991]
[1741878130753,42.23245157,125.05,125.02,0.28432314]
[1741878131556,42.23245157,125.06,125.02,0.28432314]
[1741878131877,42.23245157,125.08,125.02,50.51527471]
[1741878132360,42.23245157,125.07,125.02,50.51527471]
[1741878133053,7.94,125.09,125.04,0.28432314]
[1741878133250,42.23245157,125.1,125.05,18.64964886]
[1741878133674,42.23245157,125.09,125.04,26.931172]
[1741878133876,42.23245157,125.1,125.04,69.16362357]
[1741878134184,56.63806311,125.15,125.04,69.16362357]
[1741878134185,12.38366562,125.15,125.1,0.28432314]
[1741878134362,12.38366562,125.15,125.12,0.28432314]
[1741878134564,54.61611719,125.15,125.09,18.79181043]
[1741878134759,54.61611719,125.15,125.1,42.37461314]
[1741878134973,54.61611719,125.15,125.11,18.79181043]
[1741878135387,42.23245157,125.12,125.08,233.4378]
[1741878135566,42.23245157,125.12,125.09,0.28432314]
[1741878135981,7.9891,125.17,125.09,0.28432314]
[1741878136278,42.23245157,125.13,125.09,312.28432314]
[1741878136468,42.23245157,125.1,125.05,6.1784]
[1741878136669,42.23245157,125.09,125.06,0.28432314]
[1741878137264,42.23245157,125.1,125.06,0.28432314]
[1741878138185,50.22605157,125.1,125.06,0.28432314]
[1741878138479,7.92,125.13,125.06,42.51677471]
[1741878138653,7.92,125.13,125.06,0.28432314]
[1741878138654,42.23245157,125.11,125.06,0.28432314]
[1741878138853,42.23245157,125.12,125.06,61.16642357]
[1741878139278,15.9118,125.13,125.06,61.16642357]
[1741878139279,42.23245157,125.11,125.06,61.16642357]
[1741878139877,42.23245157,125.11,125.06,42.51677471]
[1741878140371,7.92,125.13,125.08,0.28432314]
[1741878140372,42.23245157,125.13,125.08,0.28432314]
[1741878140570,42.23245157,125.14,125.09,42.37461314]
[1741878140870,50.22305157,125.15,125.09,42.37461314]
[1741878141077,42.23245157,125.14,125.09,0.28432314]
[1741878141285,42.23245157,125.13,125.09,0.28432314]
[1741878141483,42.23245157,125.13,125.07,61.024262]
[1741878141781,42.23245157,125.13,125.09,0.28432314]
[1741878142377,50.22405157,125.13,125.09,0.28432314]
[1741878142883,42.23245157,125.14,125.09,0.28432314]
[1741878143879,7.9897,125.16,125.11,42.23245157]
[1741878144080,50.22215157,125.16,125.11,0.14216157]
[1741878144583,42.23245157,125.14,125.1,0.14216157]
[1741878144758,27.9641,125.16,125.1,0.14216157]
[1741878144957,42.23245157,125.15,125.1,0.14216157]
[1741878145363,70.19655157,125.16,125.1,42.37461314]
[1741878145687,42.23245157,125.14,125.1,0.14216157]
[1741878146061,42.23245157,125.14,125.09,8.06216157]
[1741878146062,7.9916,125.13,125.09,8.06216157]
[1741878146982,7.9916,125.13,125.1,0.14216157]
[1741878147165,19.9744,125.16,125.1,0.14216157]
[1741878147369,50.22285157,125.15,125.1,42.37461314]
[1741878147764,7.99,125.16,125.12,0.28432314]
[1741878148165,50.22245157,125.16,125.12,0.28432314]
[1741878148385,42.23245157,125.15,125.11,312.0]
[1741878148685,42.23245157,125.14,125.1,0.14216157]
[1741878149569,42.23245157,125.15,125.1,0.14216157]
[1741878150189,7.991,125.14,125.1,0.14216157]
[1741878150496,42.23245157,125.16,125.11,0.28432314]
[1741878150681,42.23245157,125.15,125.09,61.024262]
[1741878151369,42.23245157,125.13,125.09,0.14216157]
[1741878152667,7.9923,125.12,125.09,0.14216157]
[1741878152868,50.22475157,125.12,125.07,0.14216157]
[1741878153081,42.23245157,125.09,125.05,6.1784]
[1741878153971,27.9731,125.12,125.05,6.1784]
[1741878154171,42.23245157,125.09,125.05,6.1784]
[1741878154496,42.23245157,125.08,125.04,0.14216157]
[1741878154674,7.9955,125.07,125.04,0.14216157]
[1741878155485,50.22795157,125.07,125.04,0.14216157]
[1741878155688,70.21675157,125.07,125.02,6.1791]
[1741878155873,42.23245157,125.06,125.02,0.03]
[1741878156078,42.23245157,125.05,125.02,0.03]
[1741878156674,50.22985157,125.04,125.02,0.03]
[1741878156872,7.9974,125.04,125.02,0.03]
[1741878157672,50.22985157,125.04,125.02,0.03]
[1741878157972,42.23245157,125.03,125.02,0.03]
[1741878158800,50.23045157,125.03,125.02,0.03]
[1741878159593,50.23045157,125.03,125.02,0.0001]
[1741878159788,50.23045157,125.03,124.96,0.03]
[1741878160092,42.23245157,125.0,124.96,0.03]
[1741878160487,42.23245157,124.99,124.96,0.03]
[1741878160803,8.0012,124.98,124.96,0.03]
[1741878161286,50.23365157,124.98,124.96,0.03]
[1741878161494,42.23245157,124.97,124.96,0.03]
[1741878163174,8.0017,124.98,124.96,0.03]
[1741878163175,42.23245157,124.98,124.96,0.03]
[1741878164592,42.23245157,124.97,124.96,0.03]
[1741878165295,42.23245157,124.98,124.96,0.03]
[1741878165496,42.23245157,124.99,124.96,0.03]
[1741878165695,42.23245157,124.98,124.96,0.03]
[1741878165996,7.9988,125.02,124.96,0.03]
[1741878166294,42.23245157,124.97,124.96,0.03]
[1741878167305,50.23435157,124.97,124.96,0.03]
[1741878167689,42.23245157,124.98,124.96,0.03]
[1741878168098,42.23245157,124.97,124.96,0.03]
[1741878169604,50.23435157,124.97,124.96,0.03]
[1741878169811,42.23245157,124.97,124.96,0.03]
[1741878170209,50.23435157,124.97,124.96,0.03]
[1741878171291,50.23435157,124.97,124.9,5.0]
[1741878171488,42.23245157,124.91,124.9,5.0]
[1741878171896,90.7,124.96,124.9,5.0]
[1741878172305,42.23245157,124.93,124.9,5.0]
[1741878172509,42.23245157,124.92,124.9,5.0]
[1741878172916,8.0019,124.97,124.9,13.0062]
[1741878173215,42.23245157,124.95,124.91,0.28432314]
[1741878173426,42.23245157,124.94,124.9,5.0]
[1741878173585,42.23245157,124.93,124.9,5.0]
[1741878174613,42.23245157,124.92,124.9,5.0]
[1741878174791,42.23245157,124.93,124.9,5.0]
[1741878175120,42.23245157,124.93,124.9,13.0063]
[1741878175417,42.23245157,124.94,124.9,13.0063]
[1741878175716,9.5116,124.98,124.9,13.0063]
[1741878175717,42.23245157,124.95,124.9,13.0063]
[1741878176018,42.23245157,124.97,124.92,42.23245157]
[1741878176187,42.23245157,124.98,124.93,0.28432314]
[1741878176816,42.23245157,124.99,124.95,0.28432314]
[1741878177014,42.23245157,125.0,124.95,0.28432314]
[1741878177212,1.5488,125.01,124.95,0.28432314]
[1741878177213,42.23245157,124.99,124.95,0.28432314]
[1741878177398,42.23245157,124.98,124.94,0.14216157]
[1741878178199,42.23245157,125.0,124.95,0.14216157]
[1741878178398,42.23245157,124.99,124.95,0.14216157]
[1741878178921,42.29545157,125.02,124.96,42.23245157]
[1741878179418,42.29545157,125.02,124.97,8.14406157]
[1741878179820,0.063,125.02,124.98,42.37461314]
[1741878179995,0.063,125.02,124.99,42.23245157]
[1741878180192,0.063,125.02,124.99,0.14216157]
[1741878180412,0.063,125.02,125.01,42.23245157]
[1741878180722,0.063,125.02,125.01,0.14216157]
[1741878181020,0.063,125.02,125.0,6.18986157]
[1741878181719,0.063,125.02,124.97,257.95444886]
[1741878181720,42.23245157,125.01,124.97,0.28432314]
[1741878181903,42.23245157,124.99,124.96,0.28432314]
[1741878182313,42.23245157,124.98,124.95,0.14216157]
[1741878182702,42.23245157,124.98,124.95,8.14526157]
[1741878182903,42.29545157,125.02,124.95,8.14526157]
[1741878183106,42.23245157,124.99,124.95,8.14526157]
[1741878183619,42.23245157,124.98,124.96,0.03]
[1741878184006,42.23245157,124.99,124.96,0.03]
[1741878184423,42.23245157,124.97,124.96,0.03]
[1741878185799,50.23365157,124.98,124.96,0.03]